bitfinex-derivatives/quotes_BTCF0:USTF0_20250912
["timestamp","ask_amount","ask_price","bid_price","bid_amount"]
[1757685291451,0.01341,115140.0,115130.0,0.0868286]
[1757685291638,0.01341,115150.0,115130.0,1.69153369]
[1757685291844,0.01341,115150.0,115140.0,1.71604727]
[1757685292137,0.01341,115150.0,115140.0,1.24032164]
[1757685292341,0.01341,115150.0,115140.0,1.55747206]
[1757685292752,0.01341,115150.0,115140.0,1.71504727]
[1757685293245,0.01341,115150.0,115140.0,1.63696563]
[1757685293649,0.01341,115150.0,115140.0,1.55647206]
[1757685293841,0.01341,115150.0,115140.0,0.75603206]
[1757685294246,0.01341,115150.0,115140.0,1.47919042]
[1757685294846,0.01441,115150.0,115140.0,1.47919042]
[1757685295147,0.01441,115150.0,115140.0,1.16204]
[1757685295355,0.01441,115150.0,115140.0,1.16104]
[1757685295557,0.01441,115150.0,115140.0,1.47819042]
[1757685295747,0.01441,115150.0,115140.0,1.63676563]
[1757685296655,0.01441,115150.0,115140.0,0.67695042]
[1757685296948,0.01441,115150.0,115140.0,1.47995042]
[1757685297154,0.03738,115150.0,115140.0,1.48011042]
[1757685297455,0.03738,115150.0,115140.0,0.67695042]
[1757685297653,0.03738,115150.0,115140.0,1.48003042]
[1757685297856,0.01441,115150.0,115140.0,1.48003042]
[1757685298449,0.001,115150.0,115140.0,2.31585389]
[1757685298646,0.001,115150.0,115140.0,1.42595289]
[1757685298848,0.001,115150.0,115140.0,2.22899289]
[1757685299453,0.001,115150.0,115140.0,2.31581389]
[1757685299646,0.01341,115160.0,115140.0,2.31581389]
[1757685299842,0.01341,115160.0,115150.0,0.67795042]
[1757685300246,0.03573,115160.0,115150.0,0.67795042]
[1757685300446,0.03573,115160.0,115150.0,1.48143042]
[1757685300653,0.28573,115160.0,115150.0,0.3608]
[1757685300857,0.28573,115160.0,115150.0,1.32269521]
[1757685301056,0.28573,115160.0,115150.0,1.48127042]
[1757685301256,0.28573,115160.0,115150.0,1.32269521]
[1757685301454,0.28573,115160.0,115150.0,1.48127042]
[1757685301959,0.28573,115160.0,115150.0,1.32309521]
[1757685303358,0.28573,115160.0,115150.0,0.51937521]
[1757685303659,0.28573,115160.0,115150.0,1.32317521]
[1757685303852,0.28573,115160.0,115150.0,1.32217521]
[1757685304358,0.26341,115160.0,115150.0,1.48075042]
[1757685305558,0.01341,115170.0,115150.0,1.97613913]
[1757685305864,0.01341,115180.0,115160.0,0.51937521]
[1757685306051,0.01341,115180.0,115170.0,1.16828]
[1757685306459,0.01341,115180.0,115170.0,1.16728]
[1757685306962,0.01341,115180.0,115170.0,1.16628]
[1757685307660,0.01341,115180.0,115170.0,1.48343042]
[1757685308164,0.01321,115190.0,115170.0,1.16628]
[1757685308367,0.03553,115190.0,115180.0,0.3608]
[1757685308567,0.03553,115190.0,115180.0,0.67795042]
[1757685309256,0.03553,115190.0,115180.0,0.68446281]
[1757685310662,0.03853,115190.0,115180.0,0.68446281]
[1757685310866,0.03853,115190.0,115180.0,0.32566281]
[1757685311162,0.03853,115190.0,115180.0,1.04726281]
[1757685311466,0.01621,115190.0,115180.0,1.11543487]
[1757685311867,0.01621,115190.0,115180.0,1.27401008]
[1757685312262,0.01621,115190.0,115180.0,1.11543487]
[1757685312470,0.01621,115190.0,115180.0,1.93207487]
[1757685312766,0.01621,115190.0,115180.0,1.61492445]
[1757685312967,0.01621,115190.0,115180.0,1.93207487]
[1757685314067,0.01621,115190.0,115180.0,1.93107487]
[1757685314459,0.01621,115190.0,115180.0,2.08965008]
[1757685315062,0.01621,115190.0,115180.0,1.93107487]
[1757685315370,0.01421,115190.0,115180.0,2.08965008]
[1757685315556,0.01421,115190.0,115180.0,1.93107487]
[1757685315965,0.01421,115190.0,115180.0,1.11443487]
[1757685316366,0.01421,115190.0,115180.0,1.61368445]
[1757685316660,0.01421,115190.0,115180.0,1.11443487]
[1757685317061,0.01421,115190.0,115180.0,1.93087487]
[1757685317258,0.01421,115190.0,115180.0,1.11443487]
[1757685317468,0.01421,115190.0,115180.0,0.79728445]
[1757685317677,0.28653,115190.0,115180.0,1.61356445]
[1757685317967,0.28653,115190.0,115180.0,1.60605206]
[1757685318173,0.28653,115190.0,115180.0,1.76462727]
[1757685318471,0.28653,115190.0,115180.0,2.0809736]
[1757685318670,0.28753,115190.0,115180.0,2.0809736]
[1757685318873,0.28753,115190.0,115180.0,1.60605206]
[1757685319372,0.28753,115190.0,115180.0,2.0809736]
[1757685320969,0.28753,115190.0,115180.0,1.60641206]
[1757685321169,0.28753,115190.0,115180.0,2.0813336]
[1757685321862,0.28753,115190.0,115180.0,1.2646936]
[1757685322063,0.28753,115190.0,115180.0,2.0810536]
[1757685322260,0.52499077,115190.0,115180.0,0.78977206]
[1757685322459,0.03753,115190.0,115180.0,2.0832136]
[1757685323971,0.03653,115190.0,115180.0,2.0832136]
[1757685324173,0.03653,115190.0,115180.0,2.0842136]
[1757685327663,0.03653,115190.0,115180.0,1.60929206]
[1757685327866,0.03653,115190.0,115180.0,2.0842136]
[1757685328971,0.01421,115190.0,115180.0,2.0842136]
[1757685330179,0.01681,115190.0,115180.0,1.60929206]
[1757685330376,0.01681,115190.0,115180.0,2.0842136]
[1757685330579,0.01681,115190.0,115180.0,1.60929206]
[1757685330775,0.01681,115190.0,115180.0,2.0842136]
[1757685330976,0.01681,115190.0,115180.0,2.0837336]
[1757685331166,0.25427077,115190.0,115180.0,2.0837336]
[1757685332078,0.01681,115190.0,115180.0,2.0837336]
[1757685335585,0.01681,115190.0,115180.0,2.32119437]
[1757685335983,0.01681,115190.0,115180.0,2.0837336]
[1757685338685,0.0036,115190.0,115180.0,2.65798537]
[1757685338888,0.0036,115190.0,115180.0,2.73606701]
[1757685339077,0.0036,115190.0,115180.0,2.77606701]
[1757685339281,0.0036,115190.0,115180.0,2.52606701]
[1757685339484,0.0036,115190.0,115180.0,2.77606701]
[1757685339785,0.01321,115210.0,115190.0,0.0867834]
[1757685340087,0.01321,115210.0,115200.0,2.25358231]
[1757685340884,0.01321,115210.0,115200.0,1.43398231]
[1757685341181,0.01355,115210.0,115200.0,1.54252]
[1757685341387,0.01321,115220.0,115200.0,1.54252]
[1757685341579,0.01355,115210.0,115200.0,1.18172]
[1757685341779,0.01355,115210.0,115200.0,2.01744154]
[1757685342685,0.01355,115210.0,115200.0,2.03796154]
[1757685344197,0.01355,115210.0,115200.0,1.56304]
[1757685344490,0.01355,115210.0,115200.0,2.27542231]
[1757685344884,0.01355,115210.0,115200.0,1.56272]
[1757685345088,0.03469,115210.0,115200.0,1.19652154]
[1757685345291,0.03469,115210.0,115200.0,2.03804154]
[1757685345893,0.01355,115210.0,115200.0,2.03804154]
[1757685346189,0.03469,115210.0,115200.0,1.56364]
[1757685346390,0.03469,115210.0,115200.0,2.03856154]
[1757685346592,0.03469,115210.0,115200.0,1.19652154]
[1757685346793,0.03469,115210.0,115200.0,1.56368]
[1757685347090,0.03469,115210.0,115200.0,2.03860154]
[1757685347289,0.03469,115210.0,115200.0,2.11652738]
[1757685347492,0.03469,115210.0,115200.0,2.03860154]
[1757685348393,0.03469,115210.0,115200.0,2.11652738]
[1757685350599,0.03469,115210.0,115200.0,2.03860154]
[1757685352499,0.03469,115210.0,115200.0,1.19652154]
[1757685352702,0.03469,115210.0,115200.0,2.03852154]
[1757685352903,0.03469,115210.0,115200.0,1.19652154]
[1757685353401,0.03469,115210.0,115200.0,2.03820154]
[1757685354503,0.01355,115210.0,115200.0,2.27566231]
[1757685354802,0.01355,115210.0,115200.0,2.35358815]
[1757685355203,0.01355,115210.0,115200.0,1.64120584]
[1757685355406,0.01355,115210.0,115200.0,2.35398815]
[1757685356000,0.01355,115210.0,115200.0,1.51190815]
[1757685356298,0.01355,115210.0,115200.0,2.11652738]
[1757685357304,0.01355,115210.0,115200.0,2.03860154]
[1757685357696,0.01355,115210.0,115200.0,1.56368]
[1757685357995,0.01355,115210.0,115200.0,2.35398815]
[1757685358801,0.01355,115210.0,115200.0,1.64160584]
[1757685359102,0.01355,115210.0,115200.0,2.35398815]
[1757685360402,0.01355,115210.0,115200.0,2.35498815]
[1757685361404,0.01355,115210.0,115200.0,1.27544738]
[1757685361998,0.01355,115210.0,115200.0,2.11656738]
[1757685362203,0.01355,115210.0,115200.0,1.27544738]
[1757685362406,0.01355,115210.0,115200.0,1.64136584]
[1757685362407,0.03658,115210.0,115200.0,1.64136584]
[1757685362600,0.03658,115210.0,115200.0,2.11628738]
[1757685362903,0.03658,115210.0,115200.0,1.64136584]
[1757685363104,0.03658,115210.0,115200.0,2.11628738]
[1757685363506,0.03658,115210.0,115200.0,1.64136584]
[1757685363704,0.03658,115210.0,115200.0,2.11628738]
[1757685364304,0.01775669,115250.0,115200.0,2.11628738]
[1757685364606,0.01302,115270.0,115250.0,0.3608]
[1757685364796,0.01302,115280.0,115260.0,1.43398231]
[1757685364995,0.01302,115280.0,115270.0,1.15110815]
[1757685365302,0.03605,115280.0,115270.0,0.83572154]
[1757685365500,0.03605,115280.0,115270.0,0.3608]
[1757685365699,0.03605,115280.0,115270.0,0.59526077]
[1757685366001,0.52351077,115280.0,115270.0,0.3578]
[1757685366202,0.76097154,115280.0,115270.0,0.3578]
[1757685366399,0.76097154,115280.0,115260.0,0.3608]
[1757685366400,0.03605,115270.0,115260.0,0.3608]
[1757685366598,0.03605,115270.0,115260.0,0.83572154]
[1757685366800,0.30350749,115270.0,115260.0,0.85687154]
[1757685367003,1.14758749,115270.0,115260.0,0.85687154]
[1757685367203,0.30350749,115270.0,115260.0,0.85687154]
[1757685367401,1.14758749,115270.0,115260.0,0.85687154]
[1757685367802,0.05350749,115270.0,115260.0,0.85687154]
[1757685368002,0.89722749,115270.0,115260.0,0.38195]
[1757685368201,0.89722749,115270.0,115260.0,0.85687154]
[1757685368402,0.89722749,115270.0,115260.0,0.38395]
[1757685368603,0.89722749,115270.0,115260.0,0.85887154]
[1757685368805,0.87977,115270.0,115260.0,0.83772154]
[1757685369001,0.87977,115270.0,115260.0,0.60026077]
[1757685369205,0.03605,115260.0,115250.0,0.59826077]
[1757685369405,0.7695335,115260.0,115250.0,0.3608]
[1757685369607,0.7695335,115260.0,115250.0,0.2908]
[1757685369812,1.36779427,115260.0,115250.0,0.01347139]
[1757685370111,0.89287273,115260.0,115250.0,0.01247139]
[1757685370501,1.36779427,115260.0,115250.0,0.01247139]
[1757685370808,1.36779427,115260.0,115230.0,0.3608]
[1757685371003,0.02303,115240.0,115230.0,0.61941077]
[1757685371207,0.02303,115240.0,115230.0,0.39477]
[1757685371412,0.86703,115240.0,115230.0,0.86969154]
[1757685372113,1.11703,115240.0,115230.0,0.38195]
[1757685372310,1.11703,115240.0,115230.0,0.3608]
[1757685372311,1.37227403,115240.0,115230.0,0.3608]
[1757685372511,1.13481326,115240.0,115230.0,0.60226077]
[1757685372918,1.13481326,115240.0,115230.0,0.3648]
[1757685373118,1.13481326,115240.0,115230.0,0.60226077]
[1757685373612,1.37227403,115240.0,115230.0,0.60226077]
[1757685373818,1.13481326,115240.0,115230.0,0.3648]
[1757685374020,1.37227403,115240.0,115230.0,0.60226077]
[1757685374318,1.13385326,115240.0,115230.0,0.60226077]
[1757685374512,1.13385326,115240.0,115230.0,0.3648]
[1757685374712,1.13385326,115240.0,115230.0,0.60226077]
[1757685375218,1.13385326,115240.0,115230.0,0.63623077]
[1757685376528,1.13385326,115240.0,115230.0,0.39877]
[1757685376814,1.13341326,115240.0,115230.0,0.63623077]
[1757685377317,1.13341326,115240.0,115230.0,0.60226077]
[1757685377521,1.13441326,115240.0,115230.0,0.60826077]
[1757685378515,1.37187403,115240.0,115230.0,0.60826077]
[1757685378715,1.13441326,115240.0,115230.0,0.60826077]
[1757685378918,1.13441326,115240.0,115230.0,0.3708]
[1757685379118,1.13321326,115240.0,115230.0,0.64223077]
[1757685379318,1.37067403,115240.0,115230.0,0.60826077]
[1757685380525,1.13321326,115240.0,115230.0,0.52901318]
[1757685381820,1.29142644,115240.0,115230.0,0.3708]
[1757685382420,1.13321326,115240.0,115230.0,0.3708]
[1757685382724,1.13321326,115240.0,115230.0,0.52901318]
[1757685384533,1.13321326,115240.0,115230.0,0.3708]
[1757685384825,1.13321326,115240.0,115230.0,0.52901318]
[1757685385222,1.13321326,115240.0,115230.0,0.3708]
[1757685385422,1.13321326,115240.0,115230.0,0.52901318]
[1757685385626,1.11543,115240.0,115230.0,0.3708]
[1757685385826,1.27364318,115240.0,115230.0,0.3708]
[1757685386222,1.25939971,115240.0,115230.0,0.52901318]
[1757685386729,1.27711043,115240.0,115230.0,0.52901318]
[1757685387428,2.77711043,115240.0,115230.0,0.52901318]
[1757685387824,1.27711043,115240.0,115230.0,0.52901318]
[1757685388026,1.18532361,115240.0,115230.0,0.3708]
[1757685388329,2.52711043,115240.0,115230.0,0.3708]
[1757685389124,2.50939971,115240.0,115230.0,0.3708]
[1757685389330,2.50939971,115240.0,115230.0,0.01]
[1757685389529,2.52672725,115240.0,115230.0,0.01]
[1757685389825,1.68532725,115240.0,115230.0,0.01]
[1757685390028,2.36411407,115240.0,115230.0,0.56444318]
[1757685390229,2.36411407,115240.0,115230.0,0.54163318]
[1757685390528,2.52232725,115240.0,115230.0,0.54163318]
[1757685390725,2.52232725,115240.0,115230.0,0.52901318]
[1757685390930,2.52232725,115240.0,115230.0,0.3708]
[1757685391131,2.52232725,115240.0,115230.0,0.52901318]
[1757685391334,2.52232725,115240.0,115230.0,0.3708]
[1757685391537,2.52232725,115240.0,115230.0,0.52901318]
[1757685392432,1.52711407,115240.0,115230.0,0.40623]
[1757685392626,2.36335407,115240.0,115230.0,0.56444318]
[1757685393627,2.36335407,115240.0,115230.0,0.40623]
[1757685393833,2.36335407,115240.0,115230.0,0.56444318]
[1757685394033,1.52711407,115240.0,115230.0,0.56444318]
[1757685394236,1.01154072,115240.0,115230.0,0.56444318]
[1757685394433,0.18195072,115240.0,115230.0,0.56444318]
[1757685394731,1.01727072,115240.0,115230.0,0.56444318]
[1757685394929,0.85877754,115240.0,115230.0,0.56444318]
[1757685395334,2.35877754,115240.0,115230.0,0.56444318]
[1757685395634,0.85877754,115240.0,115230.0,0.56444318]
[1757685396228,0.02373754,115240.0,115230.0,0.72265636]
[1757685396537,0.85905754,115240.0,115230.0,0.97265636]
[1757685396832,0.85905754,115240.0,115230.0,1.03475743]
[1757685397031,0.85905754,115240.0,115230.0,0.71833107]
[1757685397235,0.85905754,115240.0,115230.0,0.65623]
[1757685397423,0.01732754,115240.0,115230.0,1.12151173]
[1757685397628,0.85236754,115240.0,115230.0,0.97265636]
[1757685398034,0.02373754,115240.0,115230.0,0.97265636]
[1757685398234,0.85244754,115240.0,115230.0,1.0505822]
[1757685398434,0.85885754,115240.0,115230.0,0.87667098]
[1757685399435,0.85885754,115240.0,115230.0,0.62667098]
[1757685399828,0.02373754,115240.0,115230.0,0.62667098]
[1757685400032,0.85208754,115240.0,115230.0,0.62667098]
[1757685400240,0.85849754,115240.0,115230.0,0.62667098]
[1757685400439,0.02373754,115240.0,115230.0,0.87667098]
[1757685400740,0.85144754,115240.0,115230.0,0.87667098]
[1757685401329,0.85116754,115240.0,115230.0,0.87667098]
[1757685402032,0.85080754,115240.0,115230.0,0.87667098]
[1757685402736,0.85717754,115240.0,115230.0,0.87667098]
[1757685403238,0.85717754,115240.0,115230.0,0.81444318]
[1757685403741,0.85076754,115240.0,115230.0,0.81444318]
[1757685403940,0.85076754,115240.0,115230.0,0.87667098]
[1757685404130,0.85076754,115240.0,115230.0,0.81444318]
[1757685404534,0.01732754,115240.0,115230.0,1.03488416]
[1757685404735,0.85044754,115240.0,115230.0,0.81444318]
[1757685404941,0.85685754,115240.0,115230.0,0.81444318]
[1757685405135,0.85685754,115240.0,115230.0,0.87664835]
[1757685405336,1.01507072,115240.0,115230.0,0.71843517]
[1757685405545,0.85657754,115240.0,115230.0,0.87664835]
[1757685406244,0.85657754,115240.0,115230.0,0.65623]
[1757685406648,1.01479072,115240.0,115230.0,0.56444318]
[1757685407237,0.85657754,115240.0,115230.0,0.56444318]
[1757685408437,0.02373754,115240.0,115230.0,0.56444318]
[1757685408638,0.85545754,115240.0,115230.0,0.56444318]
[1757685409244,1.26367072,115240.0,115230.0,0.38342]
[1757685409443,1.4218839,115240.0,115230.0,0.3708]
[1757685411146,1.10545754,115240.0,115230.0,0.40623]
[1757685411447,1.10449754,115240.0,115230.0,0.40623]
[1757685411847,0.27373754,115240.0,115230.0,0.40623]
[1757685412044,0.5901639,115240.0,115230.0,0.40623]
[1757685412240,1.4213239,115240.0,115230.0,0.40623]
[1757685412436,1.26311072,115240.0,115230.0,0.40623]
[1757685412643,1.01311072,115240.0,115230.0,0.56444318]
[1757685413044,0.02373754,115240.0,115230.0,0.56444318]
[1757685413246,0.85489754,115240.0,115230.0,0.56444318]
[1757685413450,0.02373754,115240.0,115230.0,0.56444318]
[1757685413657,0.85465754,115240.0,115230.0,0.56444318]
[1757685413950,0.02373754,115240.0,115230.0,0.56444318]
[1757685414152,0.85453754,115240.0,115230.0,0.56444318]
[1757685414847,0.85429754,115240.0,115230.0,0.56444318]
[1757685415152,0.85405754,115240.0,115230.0,0.56444318]
[1757685415953,1.01227072,115240.0,115230.0,0.40623]
[1757685416355,1.1704839,115240.0,115230.0,0.40623]
[1757685416648,1.4204839,115240.0,115230.0,0.3708]
[1757685419355,1.42055062,115240.0,115230.0,0.40679]
[1757685419749,1.42055062,115240.0,115230.0,0.3708]
[1757685421050,1.42055062,115240.0,115230.0,0.40679]
[1757685421655,1.41875062,115240.0,115230.0,0.40679]
[1757685422153,1.41831062,115240.0,115230.0,0.40679]
[1757685422553,1.10164426,115240.0,115230.0,0.40679]
[1757685422852,1.24246318,115240.0,115230.0,0.40679]
[1757685424453,0.25641,115240.0,115230.0,0.40679]
[1757685424659,1.24250318,115240.0,115230.0,0.40679]
[1757685425060,1.24218318,115240.0,115230.0,0.40679]
[1757685425257,0.00641,115240.0,115230.0,0.97321636]
[1757685425463,0.83437,115240.0,115230.0,0.65679]
[1757685425760,0.82796,115240.0,115230.0,0.81500318]
[1757685426066,0.02645358,115250.0,115240.0,0.03599]
[1757685426361,0.85457358,115250.0,115240.0,0.55500318]
[1757685426864,1.01278676,115250.0,115240.0,0.55500318]
[1757685427661,1.01278676,115250.0,115240.0,0.55800318]
[1757685427860,1.01278676,115250.0,115240.0,0.39979]
[1757685428162,1.26278676,115250.0,115240.0,0.003]
[1757685428357,1.10457358,115250.0,115240.0,0.003]
[1757685428665,1.78179994,115250.0,115240.0,0.003]
[1757685429662,0.59287994,115250.0,115240.0,0.003]
[1757685429967,0.18466676,115250.0,115240.0,0.39979]
[1757685430161,0.02645358,115250.0,115240.0,0.55800318]
[1757685430462,0.85573358,115250.0,115240.0,0.56300318]
[1757685431461,0.02745358,115250.0,115240.0,0.81300318]
[1757685431668,0.85621358,115250.0,115240.0,0.97121636]
[1757685431857,0.85621358,115250.0,115240.0,0.81300318]
[1757685432259,0.85621358,115250.0,115240.0,0.65479]
[1757685433358,0.85361358,115250.0,115240.0,0.65479]
[1757685435869,0.85205358,115250.0,115240.0,0.65479]
[1757685438559,0.85205358,115250.0,115240.0,0.38154]
[1757685438765,1.07295532,115250.0,115240.0,0.38154]
[1757685439076,0.85105358,115250.0,115240.0,0.40479]
[1757685440175,1.07195532,115250.0,115240.0,0.38154]
[1757685440467,1.32596532,115250.0,115240.0,0.3688]
[1757685441779,0.49575532,115250.0,115240.0,0.39205]
[1757685441977,1.10037358,115250.0,115240.0,0.40479]
[1757685442377,0.49729558,115250.0,115240.0,0.40479]
[1757685442763,0.85001358,115250.0,115240.0,0.627232]
[1757685442969,0.85001358,115250.0,115240.0,0.40479]
[1757685443170,0.85001358,115250.0,115240.0,0.627232]
[1757685443366,0.85077358,115250.0,115240.0,0.627232]
[1757685443770,0.85077358,115250.0,115240.0,0.40479]
[1757685444079,0.85077358,115250.0,115240.0,0.627232]
[1757685444282,0.85077358,115250.0,115240.0,0.40479]
[1757685444471,0.85084692,115250.0,115240.0,0.627232]
[1757685445878,0.02492692,115250.0,115240.0,0.627232]
[1757685446078,0.35671692,115250.0,115240.0,0.627232]
[1757685446669,0.01851692,115250.0,115240.0,0.627232]
[1757685446875,0.32635692,115250.0,115240.0,0.877232]
[1757685447473,0.55655692,115250.0,115240.0,0.877232]
[1757685447883,0.01851692,115250.0,115240.0,0.877232]
[1757685448073,0.74788,115250.0,115240.0,0.877232]
[1757685448673,0.74788,115250.0,115240.0,0.94706868]
[1757685450382,0.74788,115250.0,115240.0,0.72462668]
[1757685450580,0.74788,115250.0,115240.0,0.94706868]
[1757685451069,0.82964,115250.0,115240.0,0.94706868]
[1757685451869,0.001,115250.0,115240.0,0.94706868]
[1757685452282,0.01432,115250.0,115240.0,1.03381288]
[1757685452481,0.01432,115250.0,115240.0,1.02499452]
[1757685453174,0.01432,115250.0,115240.0,0.80255252]
[1757685453377,0.01432,115250.0,115240.0,1.02499452]
[1757685454478,0.01432,115250.0,115240.0,1.1989258]
[1757685454685,0.02073,115250.0,115240.0,0.47462668]
[1757685454882,0.02073,115250.0,115240.0,0.9489258]
[1757685456274,0.25787956,115250.0,115240.0,0.40479]
[1757685456480,0.02073,115250.0,115240.0,0.40479]
[1757685457383,0.27073,115250.0,115240.0,0.40479]
[1757685459287,0.02073,115250.0,115240.0,0.40479]
[1757685459989,0.02073,115250.0,115240.0,0.62720447]
[1757685460683,0.00741,115250.0,115240.0,0.62720447]
[1757685461283,0.001,115250.0,115240.0,0.62720447]
[1757685461788,0.00741,115250.0,115240.0,0.62720447]
[1757685462180,0.00741,115250.0,115240.0,0.40479]
[1757685462583,0.00741,115250.0,115240.0,0.62720447]
[1757685462889,0.00741,115250.0,115240.0,0.40479]
[1757685463091,0.00741,115250.0,115240.0,0.62720447]
[1757685464682,0.01001,115250.0,115240.0,0.62720447]
[1757685465592,0.01001,115250.0,115240.0,0.40479]
[1757685465784,0.01001,115250.0,115240.0,0.62720447]
[1757685465985,0.01001,115250.0,115240.0,0.40479]
[1757685466187,0.01001,115250.0,115240.0,0.62720447]
[1757685466486,0.01001,115250.0,115240.0,0.40479]
[1757685466683,0.01001,115250.0,115240.0,0.62720447]
[1757685467185,0.01001,115250.0,115240.0,0.40479]
[1757685467385,0.23242447,115250.0,115240.0,0.40479]
[1757685467890,0.01001,115250.0,115240.0,0.40479]
[1757685468987,0.48242447,115250.0,115240.0,0.40479]
[1757685469290,0.48242447,115250.0,115240.0,0.3688]
[1757685471886,0.01001,115250.0,115240.0,0.62572447]
[1757685472088,0.01001,115250.0,115240.0,0.40331]
[1757685472385,0.23242447,115250.0,115240.0,0.40331]
[1757685472581,0.48242447,115250.0,115240.0,0.3688]
[1757685473487,0.48242447,115250.0,115240.0,0.008]
[1757685474192,0.26001,115250.0,115240.0,0.008]
[1757685474389,0.48242447,115250.0,115240.0,0.008]
[1757685474795,0.26001,115250.0,115240.0,0.008]
[1757685474988,0.48242447,115250.0,115240.0,0.008]
[1757685476095,0.48242447,115250.0,115240.0,0.04322]
[1757685476482,0.49728833,115250.0,115240.0,0.40402]
[1757685476796,0.24728833,115250.0,115240.0,0.64129833]
[1757685478093,0.24728833,115250.0,115240.0,0.40402]
[1757685479195,0.48456666,115250.0,115240.0,0.3688]
[1757685481695,0.48456666,115250.0,115240.0,0.008]
[1757685485803,0.50242775,115250.0,115240.0,0.008]
[1757685486200,0.02787109,115250.0,115240.0,0.04322]
[1757685486395,0.26514942,115250.0,115240.0,0.40402]
[1757685486591,0.50242775,115250.0,115240.0,0.40402]
[1757685486801,0.02787109,115250.0,115240.0,0.38249]
[1757685486996,0.26514942,115250.0,115240.0,0.40402]
[1757685487601,0.25873942,115250.0,115240.0,0.3688]
[1757685489203,0.25826297,115250.0,115240.0,0.3688]
[1757685491002,0.28030503,115250.0,115240.0,0.3688]
[1757685491201,0.25826297,115250.0,115240.0,0.3688]
[1757685491504,0.28030708,115250.0,115240.0,0.3688]
[1757685491904,0.51758541,115250.0,115240.0,0.3688]
[1757685492800,0.4955413,115250.0,115240.0,0.008]
[1757685492996,0.25826297,115250.0,115240.0,0.3688]
[1757685494103,0.4955413,115250.0,115240.0,0.3688]
[1757685495303,0.51759848,115250.0,115240.0,0.3688]
[1757685496499,0.51759848,115250.0,115240.0,0.008]
[1757685502420,0.04304182,115250.0,115240.0,0.3688]
[1757685502613,0.28032015,115250.0,115240.0,0.3688]
[1757685502812,0.04304182,115250.0,115240.0,0.3688]
[1757685503117,0.28032015,115250.0,115240.0,0.60607833]
[1757685503512,0.28032015,115250.0,115240.0,0.3688]
[1757685504420,0.20122042,115250.0,115240.0,0.3688]
[1757685505220,0.04304182,115250.0,115240.0,0.3688]
[1757685505619,0.20122042,115250.0,115240.0,0.3688]
[1757685506118,0.04304182,115250.0,115240.0,0.3688]
[1757685506318,0.20122042,115250.0,115240.0,0.3688]
[1757685507915,0.04304182,115250.0,115240.0,0.6188]
[1757685508121,0.02098464,115250.0,115240.0,0.9351572]
[1757685510315,0.02098464,115250.0,115240.0,0.6188]
[1757685510519,0.02098464,115250.0,115240.0,0.9351572]
[1757685511021,0.0036,115250.0,115240.0,0.9351572]
[1757685512527,0.0036,115250.0,115240.0,0.6188]
[1757685512824,0.0036,115250.0,115240.0,1.00465385]
[1757685515925,0.0036,115250.0,115240.0,0.68829665]
[1757685516117,0.0036,115250.0,115240.0,1.00465385]
[1757685519326,0.0036,115250.0,115240.0,0.75465385]
[1757685519920,0.0036,115250.0,115240.0,0.59647525]
[1757685520124,0.1617786,115250.0,115240.0,0.59647525]
[1757685520727,0.1617786,115250.0,115240.0,0.43829665]
[1757685521625,0.0036,115250.0,115240.0,0.43829665]
[1757685522025,0.0036,115250.0,115240.0,0.59647525]
[1757685522830,0.0036,115250.0,115240.0,0.75465385]
[1757685523025,0.0036,115250.0,115240.0,0.59647525]
[1757685524230,0.0036,115250.0,115240.0,0.75465385]
[1757685527034,0.0036,115250.0,115240.0,0.43829665]
[1757685527233,0.0036,115250.0,115240.0,0.75465385]
[1757685529531,0.0036,115250.0,115240.0,1.00465385]
[1757685530132,0.01742242,115270.0,115240.0,1.16283245]
[1757685530327,0.01742242,115270.0,115260.0,0.6771572]
[1757685530538,0.01742242,115270.0,115260.0,0.5189786]
[1757685531040,0.01742242,115270.0,115260.0,0.8797786]
[1757685531227,0.17560102,115270.0,115260.0,0.8797786]
[1757685531434,0.17560102,115270.0,115260.0,0.7216]
[1757685532140,0.17560102,115270.0,115260.0,0.7246]
[1757685532844,0.17560102,115270.0,115260.0,0.8827786]
[1757685533139,0.17560102,115270.0,115260.0,0.7246]
[1757685533338,0.17560102,115270.0,115260.0,0.7256]
[1757685535437,0.42560102,115270.0,115260.0,0.7256]
[1757685535936,0.58377962,115270.0,115260.0,0.7256]
[1757685536143,0.58377962,115270.0,115260.0,0.3648]
[1757685536942,0.42560102,115270.0,115260.0,0.3648]
[1757685537341,0.58377962,115270.0,115260.0,0.3648]
[1757685537942,0.42560102,115270.0,115260.0,0.3648]
[1757685538743,0.58377962,115270.0,115260.0,0.3648]
[1757685538942,0.26742242,115270.0,115260.0,0.3648]
[1757685539142,0.42560102,115270.0,115260.0,0.3648]
[1757685540044,0.42560102,115270.0,115260.0,0.004]
[1757685540241,0.44763199,115270.0,115260.0,0.3648]
[1757685545045,0.19763199,115270.0,115260.0,0.3648]
[1757685547448,0.17560102,115270.0,115260.0,0.3648]
[1757685548449,0.01742242,115270.0,115260.0,0.3648]
[1757685555655,0.37822242,115270.0,115260.0,0.004]
[1757685557156,0.40025467,115270.0,115260.0,0.004]
[1757685557962,0.40036199,115270.0,115260.0,0.004]
[1757685561458,0.40012237,115270.0,115260.0,0.004]
[1757685562761,0.03932237,115270.0,115260.0,0.004]
[1757685563262,0.03932237,115270.0,115260.0,0.3648]
[1757685574567,0.03975846,115270.0,115260.0,0.3648]
[1757685578170,0.4001564,115270.0,115260.0,0.004]
[1757685578873,0.40059202,115270.0,115260.0,0.004]
[1757685580167,0.03979202,115270.0,115260.0,0.004]
[1757685585276,0.04079202,115270.0,115260.0,0.003]
[1757685586177,0.04079202,115270.0,115260.0,0.002]
[1757685586376,0.03979202,115270.0,115260.0,0.002]
[1757685591183,0.63283225,115270.0,115260.0,0.002]
[1757685592684,0.63283225,115270.0,115240.0,0.3608]
[1757685592888,0.38283225,115270.0,115260.0,0.002]
[1757685596789,0.38283225,115270.0,115240.0,0.3628]
[1757685596976,0.3608,115260.0,115240.0,0.3628]
[1757685597177,0.38283225,115260.0,115240.0,0.3628]
[1757685597979,0.38283225,115260.0,115240.0,0.3608]
[1757685599785,0.38283225,115260.0,115230.0,0.3608]
[1757685600284,0.7216,115240.0,115200.0,0.07792584]
[1757685600479,0.7216,115210.0,115190.0,0.07792584]
[1757685600683,0.01,115230.0,115180.0,0.07792584]
[1757685600884,0.7216,115190.0,115180.0,0.07792584]